fUSD/lending_fUSD_20250622
["ID","MTS","AMOUNT","RATE_DAILY","PERIOD"]
[366918845,1750571457733,-602.03,0.00019178,2]
[366918846,1750571457743,-490.0,0.00019178,2]
[366918847,1750571457754,-490.0,0.00019178,2]
[366918848,1750571457764,-490.0,0.00019178,2]
[366918849,1750571457774,-3292.88,0.00019178,2]
[366918850,1750571457784,-490.0,0.00019178,2]
[366918851,1750571457794,-490.0,0.00019178,2]
[366918852,1750571457803,-4536.81,0.00019178,2]
[366918853,1750571457814,-490.0,0.00019178,2]
[366918854,1750571457824,-490.0,0.00019178,2]
[366918855,1750571457833,-562.77,0.00019178,2]
[366918856,1750571457843,-1957.13,0.00019178,2]
[366918857,1750571457852,-490.0,0.00019178,2]
[366918858,1750571457862,-490.0,0.00019178,2]
[366918859,1750571457871,-1882.91,0.00019178,2]
[366918860,1750571457881,-498.18,0.00019178,2]
[366918861,1750571457891,-490.0,0.00019178,2]
[366918862,1750571457900,-537.35,0.00019178,2]
[366918863,1750571457910,-490.0,0.00019178,2]
[366918864,1750571457920,-490.0,0.00019178,2]
[366918865,1750571457931,-869.72,0.00019178,2]
[366918866,1750571457940,-3386.78,0.00019178,2]
[366918867,1750571457950,-1766.04,0.00019178,2]
[366918868,1750571457960,-490.0,0.00019178,2]
[366918869,1750571457970,-490.0,0.00019178,2]
[366918870,1750571457979,-490.0,0.00019178,2]
[366918871,1750571457989,-2566.52,0.00019178,2]
[366918872,1750571458000,-578.85,0.00019178,2]
[366918873,1750571458010,-490.0,0.00019178,2]
[366918874,1750571458019,-4462.64,0.00019178,2]
[366918875,1750571458029,-490.0,0.00019178,2]
[366918876,1750571458038,-490.0,0.00019178,2]
[366918877,1750571458048,-151.0,0.00019178,2]
[366918878,1750571458058,-490.0,0.00019178,2]
[366918879,1750571458068,-561.94,0.00019178,2]
[366918880,1750571458078,-561.94,0.00019178,2]
[366918881,1750571458088,-153.392266,0.00019178,2]
[366918882,1750571458098,-1953.88,0.00019178,2]
[366918883,1750571458109,-561.94,0.00019178,2]
[366918884,1750571458118,-561.94,0.00019178,2]
[366918885,1750571458128,-561.94,0.00019178,2]
[366918886,1750571458137,-1623.46,0.00019178,2]
[366918887,1750571458147,-561.94,0.00019178,2]
[366918888,1750571458161,-561.94,0.00019178,2]
[366918889,1750571458171,-1510.27,0.00019178,2]
[366918890,1750571458181,-561.94,0.00019178,2]
[366918891,1750571458191,-490.0,0.00019178,2]
[366918892,1750571458202,-490.0,0.00019178,2]
[366918893,1750571458212,-1675.62,0.00019178,2]
[366918894,1750571458221,-536.01703518,0.00019178,2]
[366918895,1750571458233,-151.0,0.00019178,2]
[366918896,1750571458243,-151.0,0.00019178,2]
[366918897,1750571458252,-2343.24,0.00019178,2]
[366918898,1750571458263,-8674.53,0.00019178,2]
[366918899,1750571458272,-8674.53,0.00019178,2]
[366918900,1750571458281,-8674.53,0.00019178,2]
[366918901,1750571458291,-490.0,0.00019178,2]
[366918902,1750571458300,-8674.53,0.00019178,2]
[366918903,1750571458310,-701.27,0.00019178,2]
[366918904,1750571458320,-1722.57,0.00019178,2]
[366918905,1750571458329,-8674.53,0.00019178,2]
[366918906,1750571458340,-8674.53,0.00019178,2]
[366918907,1750571458350,-874.98,0.00019178,2]
[366918908,1750571458359,-490.0,0.00019178,2]
[366918909,1750571458369,-3014.14,0.00019178,2]
[366918910,1750571458379,-8674.53,0.00019178,2]
[366918911,1750571458388,-7758.69,0.00019178,2]
[366918912,1750571458398,-8674.53,0.00019178,2]
[366918913,1750571458407,-3212.36,0.00019178,2]
[366918914,1750571458417,-490.0,0.00019178,2]
[366918915,1750571458427,-1202.5,0.00019178,2]
[366918916,1750571458436,-151.0,0.00019178,2]
[366918917,1750571458446,-292.55554035,0.00019178,2]
[366918918,1750571458456,-386.39378245,0.00019178,2]
[366918919,1750571458466,-154.975174,0.00019178,2]
[366918920,1750571458476,-490.0,0.00019178,2]
[366918921,1750571458485,-490.0,0.00019178,2]
[366918922,1750571458495,-11908.75,0.00019178,2]
[366918923,1750571458504,-481.18521858,0.00019178,2]
[366918924,1750571458514,-490.0,0.00019178,2]
[366918925,1750571458523,-1501.05,0.00019178,2]
[366918926,1750571458533,-1001.15,0.00019178,2]
[366918927,1750571458543,-5544.48,0.00019178,2]
[366918928,1750571458553,-490.0,0.00019178,2]
[366918929,1750571458562,-550.19985758,0.00019178,2]
[366918930,1750571458572,-659.72,0.00019178,2]
[366918931,1750571458582,-2870.12,0.00019178,2]
[366918932,1750571458591,-490.0,0.00019178,2]
[366918933,1750571458602,-1304.47,0.00019178,2]
[366918934,1750571458611,-492.01847776,0.00019178,2]
[366918935,1750571458621,-4207.51,0.00019178,2]
[366918936,1750571458630,-1856.67,0.00019178,2]
[366918937,1750571458640,-490.0,0.00019178,2]
[366918938,1750571458650,-500.0,0.00019178,2]
[366918939,1750571458659,-500.0,0.00019178,2]
[366918940,1750571458668,-490.0,0.00019178,2]
[366918941,1750571458678,-500.0,0.00019178,2]
[366918942,1750571458688,-490.0,0.00019178,2]
[366918943,1750571458697,-500.0,0.00019178,2]
[366918944,1750571458707,-500.0,0.00019178,2]
[366918945,1750571458716,-490.0,0.00019178,2]
[366918946,1750571458726,-500.0,0.00019178,2]
[366918947,1750571458736,-500.0,0.00019178,2]
[366918948,1750571458745,-500.0,0.00019178,2]
[366918949,1750571458755,-2194.46,0.00019178,2]
[366918950,1750571458766,-490.0,0.00019178,2]
[366918951,1750571458776,-300.0,0.00019178,2]
[366918952,1750571458785,-4559.09,0.00019178,2]
[366918953,1750571458797,-851.83,0.00019178,2]
[366918954,1750571458806,-490.0,0.00019178,2]
[366918955,1750571458815,-490.0,0.00019178,2]
[366918956,1750571458825,-1754.14,0.00019178,2]
[366918957,1750571458834,-490.0,0.00019178,2]
[366918958,1750571458844,-1026.53,0.00019178,2]
[366918959,1750571458854,-2692.63,0.00019178,2]
[366918960,1750571458863,-803.35,0.00019178,2]
[366918961,1750571458875,-707.62,0.00019178,2]
[366918962,1750571458884,-490.0,0.00019178,2]
[366918963,1750571458893,-490.0,0.00019178,2]
[366918964,1750571458903,-760.3,0.00019178,2]
[366918965,1750571458914,-27141.64,0.00019178,2]
[366918966,1750571458924,-1455.22,0.00019178,2]
[366918967,1750571458933,-1455.22,0.00019178,2]
[366918968,1750571458943,-1455.22,0.00019178,2]
[366918969,1750571458953,-2174.76,0.00019178,2]
[366918970,1750571458963,-1455.22,0.00019178,2]
[366918971,1750571458972,-1455.22,0.00019178,2]
[366918972,1750571458982,-1455.22,0.00019178,2]
[366918973,1750571458992,-541.39,0.00019178,2]
[366918974,1750571459001,-490.0,0.00019178,2]
[366918975,1750571459010,-1455.22,0.00019178,2]
[366918976,1750571459020,-490.0,0.00019178,2]
[366918977,1750571459029,-490.0,0.00019178,2]
[366918978,1750571459038,-490.0,0.00019178,2]
[366918979,1750571459047,-490.0,0.00019178,2]
[366918980,1750571459057,-4089.06,0.00019178,2]
[366918981,1750571459066,-490.0,0.00019178,2]
[366918982,1750571459077,-490.0,0.00019178,2]
[366918983,1750571459086,-490.0,0.00019178,2]
[366918984,1750571459096,-151.0,0.00019178,2]
[366918985,1750571459106,-152.885997,0.00019178,2]
[366918986,1750571459115,-490.0,0.00019178,2]
[366918987,1750571459125,-490.0,0.00019178,2]
[366918988,1750571459136,-500.95,0.00019178,2]
[366918989,1750571459146,-490.0,0.00019178,2]
[366918990,1750571459159,-7478.7,0.00019178,2]
[366918991,1750571459169,-1228.02,0.00019178,2]
[366918992,1750571459179,-490.0,0.00019178,2]
[366918993,1750571459188,-490.0,0.00019178,2]
[366918994,1750571459199,-2275.51,0.00019178,2]
[366918995,1750571459208,-490.0,0.00019178,2]
[366918996,1750571459217,-490.0,0.00019178,2]
[366918997,1750571459228,-490.0,0.00019178,2]
[366918998,1750571459238,-6428.55,0.00019178,2]
[366918999,1750571459248,-2467.78,0.00019178,2]
[366919000,1750571459258,-500.0,0.00019178,2]
[366919001,1750571459269,-646.09,0.00019178,2]
[366919002,1750571459280,-490.0,0.00019178,2]
[366919003,1750571459290,-490.0,0.00019178,2]
[366919004,1750571459300,-500.0,0.00019178,2]
[366919005,1750571459311,-500.0,0.00019178,2]
[366919006,1750571459321,-490.0,0.00019178,2]
[366919007,1750571459331,-537.69312003,0.00019178,2]
[366919008,1750571459341,-500.0,0.00019178,2]
[366919009,1750571459351,-500.0,0.00019178,2]
[366919010,1750571459361,-1388.29,0.00019178,2]
[366919011,1750571459371,-490.0,0.00019178,2]
[366919012,1750571459381,-490.0,0.00019178,2]
[366919013,1750571459392,-843.96,0.00019178,2]
[366919014,1750571459402,-1405.32,0.00019178,2]
[366919015,1750571459412,-490.0,0.00019178,2]
[366919016,1750571459421,-1023.38,0.00019178,2]
[366919017,1750571459431,-490.0,0.00019178,2]
[366919018,1750571459442,-490.0,0.00019178,2]
[366919019,1750571459452,-490.0,0.00019178,2]
[366919020,1750571459462,-490.0,0.00019178,2]
[366919021,1750571459472,-1549.11,0.00019178,2]
[366919022,1750571459483,-490.0,0.00019178,2]
[366919023,1750571459492,-675.89,0.00019178,2]
[366919024,1750571459502,-2609.6,0.00019178,2]
[366919025,1750571459512,-503.47,0.00019178,2]
[366919026,1750571459521,-490.0,0.00019178,2]
[366919027,1750571459531,-1739.01,0.00019178,2]
[366919028,1750571459541,-666.0,0.00019178,2]
[366919029,1750571459551,-171.45,0.00019178,2]
[366919030,1750571459565,-38543.39301735,0.00019178,2]
[366919031,1750571459575,-151.0,0.0001918,2]
[366919032,1750571459585,-151.0,0.0001918,2]
[366919033,1750571459595,-190.627065,0.0001918,2]
[366919034,1750571459605,-2179.544178,0.0001918,2]
[366919035,1750571459615,-2179.544178,0.0001918,2]
[366919036,1750571459625,-151.0,0.0001918,2]
[366919037,1750571459635,-151.0,0.0001918,2]
[366919038,1750571459645,-151.0,0.0001918,2]
[366919039,1750571459655,-150.0,0.00019188,2]
[366919040,1750571459665,-150.0,0.00019193,2]
[366919041,1750571459675,-150.0,0.00019195,2]
[366919042,1750571459686,-150.0,0.00019198,2]
[366919043,1750571459696,-3227.1366504,0.000192,2]
[366919044,1750571459706,-150.0,0.00019202,2]
[366919045,1750571459716,-150.0,0.00019203,2]
[366919046,1750571459726,-150.0,0.00019203,2]
[366919047,1750571459736,-500.0,0.00019205,2]
[366919048,1750571459745,-500.0,0.00019205,2]
[366919049,1750571459755,-202.757602,0.00019205,2]
[366919050,1750571459765,-500.0,0.00019205,2]
[366919051,1750571459775,-500.0,0.00019205,2]
[366919052,1750571459785,-500.0,0.00019205,2]
[366919053,1750571459795,-150.0,0.00019205,2]
[366919054,1750571459805,-500.0,0.00019205,2]
[366919055,1750571459816,-150.0,0.00019205,2]
[366919056,1750571459826,-150.0,0.00019205,2]
[366919057,1750571459836,-195.02812197,0.00019205,2]
[366919058,1750571459847,-150.0,0.00019205,2]
[366919059,1750571459857,-500.0,0.00019205,2]
[366919060,1750571459868,-150.0,0.00019205,2]
[366919061,1750571459879,-150.0,0.00019205,2]
[366919062,1750571459889,-150.0,0.00019205,2]
[366919063,1750571459899,-150.0,0.00019205,2]
[366919064,1750571459910,-150.0,0.00019205,2]
[366919065,1750571459921,-150.0,0.00019205,2]
[366919066,1750571459932,-150.0,0.00019205,2]
[366919067,1750571459942,-150.0,0.00019205,2]
[366919068,1750571459952,-150.0,0.00019205,2]
[366919069,1750571459962,-500.0,0.00019205,2]
[366919070,1750571459972,-150.0,0.00019205,2]
[366919071,1750571459982,-552.32051416,0.00019205,2]
[366919072,1750571459992,-605.2209032,0.00019205,2]
[366919073,1750571460002,-555.50049229,0.00019205,2]
[366919074,1750571460012,-371.37678721,0.00019205,2]
[366919075,1750571460022,-150.0,0.00019205,2]
[366919076,1750571460032,-4424.82823369,0.00019212,2]
[366919077,1750571460042,-150.0,0.00019213,2]
[366919078,1750571460052,-150.0,0.00019214,2]
[366919079,1750571460064,-150.0,0.00019216,2]
[366919080,1750571460075,-150.0,0.00019216,2]
[366919081,1750571460085,-250.0,0.00019219,2]
[366919082,1750571460095,-250.0,0.00019219,2]
[366919083,1750571460105,-250.0,0.00019219,2]
[366919084,1750571460115,-1000.0,0.00019221,2]
[366919085,1750571460125,-150.0,0.00019228,2]
[366919086,1750571460135,-3227.1366504,0.0001923,2]
[366919087,1750571460144,-150.0,0.00019231,2]
[366919088,1750571460158,-544.673,0.00019232,2]
[366919089,1750571460168,-500.99245321,0.00019233,2]
[366919090,1750571460178,-500.0,0.00019233,2]
[366919091,1750571460188,-500.68412876,0.00019233,2]
[366919092,1750571460198,-567.82057631,0.00019233,2]
[366919093,1750571460208,-500.0,0.00019233,2]
[366919094,1750571460218,-150.46444261,0.00019233,2]
[366919095,1750571460229,-500.0,0.00019233,2]
[366919096,1750571460239,-150.0,0.00019233,2]
[366919097,1750571460248,-150.48351388,0.00019233,2]
[366919098,1750571460258,-150.0,0.00019233,2]
[366919099,1750571460268,-221.89726734,0.00019233,2]
[366919100,1750571460278,-150.0,0.00019233,2]
[366919101,1750571460288,-203.46275479,0.00019233,2]
[366919102,1750571460298,-202.25414162,0.00019233,2]
[366919103,1750571460308,-203.36629011,0.00019233,2]
[366919104,1750571460319,-200.0,0.00019233,2]
[366919105,1750571460329,-201.75969281,0.00019233,2]
[366919106,1750571460339,-202.32686889,0.00019233,2]
[366919107,1750571460349,-206.53504891,0.00019233,2]
[366919108,1750571460360,-200.53592135,0.00019233,2]
[366919109,1750571460370,-500.0,0.00019233,2]
[366919110,1750571460381,-200.0,0.00019233,2]
[366919111,1750571460392,-150.0,0.00019233,2]
[366919112,1750571460402,-1680.0,0.00019236,2]
[366919113,1750571460411,-150.0,0.0001924,2]
[366919114,1750571460421,-150.0,0.00019241,2]
[366919115,1750571460431,-150.0,0.00019247,2]
[366919116,1750571460441,-4424.82823369,0.00019247,2]
[366919117,1750571460451,-151.0,0.00019248,2]
[366919118,1750571460461,-151.0,0.00019248,2]
[366919119,1750571460471,-151.0,0.00019248,2]
[366919120,1750571460480,-151.0,0.00019248,2]
[366919121,1750571460491,-151.0,0.00019248,2]
[366919122,1750571460500,-150.0,0.00019252,2]
[366919123,1750571460510,-150.0,0.00019254,2]
[366919124,1750571460520,-500.0,0.00019258,2]
[366919125,1750571460531,-1000.0,0.0001926,2]
[366919126,1750571460541,-501.44140873,0.0001926,2]
[366919127,1750571460551,-500.0,0.0001926,2]
[366919128,1750571460563,-180.9730098,0.0001926,2]
[366919129,1750571460573,-150.0,0.0001926,2]
[366919130,1750571460582,-150.9151092,0.0001926,2]
[366919131,1750571460592,-152.79956233,0.0001926,2]
[366919132,1750571460602,-502.66133715,0.0001926,2]
[366919133,1750571460612,-150.0,0.0001926,2]
[366919134,1750571460622,-3227.1366504,0.00019261,2]
[366919135,1750571460632,-168.0,0.00019261,2]
[366919136,1750571460642,-150.0,0.00019263,2]
[366919137,1750571460651,-300.0,0.00019263,2]
[366919138,1750571460661,-150.0,0.00019263,2]
[366919139,1750571460671,-150.0,0.00019263,2]
[366919140,1750571460681,-1000.0,0.00019268,2]
[366919141,1750571460691,-283.23695406,0.00019274,2]
[366919142,1750571460700,-239.24451568,0.00019281,2]
[366919143,1750571460710,-500.0,0.00019281,2]
[366919144,1750571460720,-4424.82823369,0.00019282,2]
[366919145,1750571460730,-150.0,0.00019283,2]
[366919146,1750571460740,-150.0,0.00019284,2]
[366919147,1750571460750,-200.79857448,0.00019288,2]
[366919148,1750571460760,-150.0,0.00019288,2]
[366919149,1750571460770,-150.0,0.00019288,2]
[366919150,1750571460780,-1000.0,0.0001929,2]
[366919151,1750571460790,-1000.0,0.0001929,2]
[366919152,1750571460800,-3227.1366504,0.00019291,2]
[366919153,1750571460811,-150.0,0.00019298,2]
[366919154,1750571460822,-1000.0,0.000193,2]
[366919155,1750571460832,-168.0,0.00019302,2]
[366919156,1750571460842,-150.0,0.00019302,2]
[366919157,1750571460852,-150.0,0.00019305,2]
[366919158,1750571460862,-150.0,0.00019307,2]
[366919159,1750571460872,-1000.0,0.00019309,2]
[366919160,1750571460883,-150.0,0.00019314,2]
[366919161,1750571460893,-250.0,0.00019315,2]
[366919162,1750571460904,-600.0,0.00019317,2]
[366919163,1750571460914,-4424.82823369,0.00019317,2]
[366919164,1750571460925,-3227.1366504,0.00019322,2]
[366919165,1750571460935,-150.0,0.00019323,2]
[366919166,1750571460945,-996.41829146,0.00019323,2]
[366919167,1750571460955,-150.0,0.00019325,2]
[366919168,1750571460966,-150.0,0.00019329,2]
[366919169,1750571460976,-150.0,0.00019331,2]
[366919170,1750571460987,-150.0,0.00019331,2]
[366919171,1750571460998,-151.0,0.00019333,2]
[366919172,1750571461008,-151.957109,0.00019333,2]
[366919173,1750571461020,-162.898941,0.00019333,2]
[366919174,1750571461032,-16264.12419607,0.00019333,2]
[366919175,1750571461042,-150.0,0.00019334,2]
[366919176,1750571461053,-400.0,0.00019338,2]
[366919177,1750571461064,-561.94,0.00019338,2]
[366919178,1750571461075,-150.0,0.00019339,2]
[366919179,1750571461085,-1831.44,0.00019339,2]
[366919180,1750571461094,-3070.27,0.00019339,2]
[366919181,1750571461104,-150.99,0.00019339,2]
[366919182,1750571461114,-275.88,0.00019339,2]
[366919183,1750571461124,-336.4,0.00019339,2]
[366919184,1750571461134,-9999.99,0.00019339,2]
[366919185,1750571461144,-9739.68,0.00019339,2]
[366919186,1750571461158,-1483.36,0.00019339,2]
[366919187,1750571461169,-150.99,0.00019339,2]
[366919188,1750571461179,-999.99,0.00019339,2]
[366919189,1750571461189,-150.0,0.00019343,2]
[366919190,1750571461199,-150.0,0.00019348,2]
[366919191,1750571461209,-150.0,0.00019349,2]
[366919192,1750571461220,-162.35736245,0.00019352,2]
[366919193,1750571461231,-4424.82823369,0.00019352,2]
[366919194,1750571461242,-3227.1366504,0.00019352,2]
[366919195,1750571461253,-845.98984755,0.00019352,2]
[366919196,1750571461263,-255.41984092,0.00019352,2]
[366919197,1750571461273,-629.05188733,0.00019352,2]
[366919198,1750571461283,-164.42141278,0.00019352,3]
[366919199,1750571461292,-150.0,0.00019357,2]
[366919200,1750571461303,-150.0,0.0001937,2]
[366919201,1750571461313,-150.0,0.00019374,2]
[366919202,1750571461323,-273.97434236,0.00019379,2]
[366919203,1750571461334,-151.0,0.00019383,2]
[366919204,1750571461344,-151.0,0.00019383,2]
[366919205,1750571461354,-150.0,0.00019386,2]
[366919206,1750571461364,-150.0,0.0001939,2]
[366919207,1750571461375,-2961905.40053759,0.00019392,3]
[366919208,1750571462487,-320.14840894,0.00019392,3]
[366919209,1750571462499,-1409.5794221,0.00019392,3]
[366919210,1750571463268,-490.0,0.00019178,2]
[366919211,1750571463278,-490.0,0.00019178,2]
[366919212,1750571463289,-582.83528201,0.00019178,2]
[366919213,1750571463299,-1614.07,0.00019178,2]
[366919214,1750571463308,-294.08451066,0.00019178,2]
[366919215,1750571463321,-195.91548934,0.00019178,2]
[366919216,1750571463331,-490.0,0.00019178,2]
[366919217,1750571463342,-559.7676106,0.00019178,2]
[366919218,1750571463353,-416.93852745,0.00019392,3]
[366919219,1750571463366,-4284.65775104,0.00019392,3]
[366919220,1750571463379,-35839.68482909,0.00019392,3]
[366919221,1750571463395,-514.7,0.00019392,3]
[366919222,1750571466455,-272.8275928,0.00019168,2]
[366919223,1750571466477,-402.4024072,0.00019168,2]
[366919224,1750571466487,-261.08658591,0.00019168,2]
[366919227,1750572073730,161.55,0.00013699,2]
[366919232,1750572191780,202.0,0.00016878,2]
[366919236,1750572247337,955.0,0.00024658,120]
[366919237,1750572250274,193.67468134,0.00017419,2]
[366919366,1750572500721,686.8,0.00017455,2]
[366919408,1750572551428,203.0,0.00017418,2]
[366919409,1750572553828,193.67468134,0.00017409,2]
[366919434,1750572632158,-150.0,0.00017458,2]
[366919435,1750572632168,-5470.82,0.00017473,2]
[366919436,1750572632178,-2033.27,0.000175,2]
[366919437,1750572632187,-150.0,0.00017509,2]
[366919438,1750572632197,-1200.0,0.00017517,2]
[366919439,1750572632207,-300.0,0.00017518,2]
[366919440,1750572632216,-300.0,0.00017519,2]
[366919441,1750572632225,-300.0,0.00017519,2]
[366919442,1750572632235,-23900.0,0.0001752,2]
[366919443,1750572632244,-500.0,0.00017534,2]
[366919444,1750572632253,-773.5,0.00017546,2]
[366919445,1750572632262,-1217.27,0.0001758,2]
[366919446,1750572632272,-500.0,0.00017878,2]
[366919447,1750572632281,-500.0,0.00017878,2]
[366919448,1750572632290,-233.0,0.00017964,2]
[366919449,1750572632299,-233.0,0.0001798,2]
[366919450,1750572632308,-166.76,0.00018041,2]
[366919451,1750572632318,-2400.35,0.00018086,2]
[366919452,1750572632327,-439.32,0.00018099,2]
[366919453,1750572632337,-439.32,0.00018104,2]
[366919454,1750572632346,-439.32,0.00018109,2]
[366919455,1750572632356,-439.32,0.00018114,2]
[366919456,1750572632365,-439.32,0.00018118,2]
[366919457,1750572632375,-439.32,0.00018123,2]
[366919458,1750572632384,-439.32,0.00018128,2]
[366919460,1750572632394,-439.32,0.00018133,2]
[366919462,1750572632403,-439.32,0.00018137,2]
[366919463,1750572632412,-439.32,0.00018142,2]
[366919464,1750572632422,-16869.41868952,0.00018146,2]
[366919465,1750572632433,-439.32,0.00018147,2]
[366919466,1750572632443,-12.29150942,0.00018152,2]
[366919530,1750572638117,-427.02849058,0.00018152,2]
[366919531,1750572638127,-22124.19,0.00018156,2]
[366919532,1750572638137,-439.32,0.00018157,2]
[366919533,1750572638147,-439.32,0.00018161,2]
[366919534,1750572638157,-439.32,0.00018166,2]
[366919535,1750572638166,-439.32,0.00018171,2]
[366919536,1750572638176,-439.32,0.00018176,2]
[366919537,1750572638185,-439.32,0.0001818,2]
[366919538,1750572638195,-439.32,0.00018185,2]
[366919539,1750572638205,-439.32,0.0001819,2]
[366919540,1750572638215,-2751.0,0.00018262,2]
[366919541,1750572638225,-1000.0,0.00018277,2]
[366919542,1750572638235,-217.0,0.00018295,2]
[366919543,1750572638245,-233.0,0.00018304,2]
[366919544,1750572638255,-200.0,0.00018317,2]
[366919545,1750572638265,-553.0,0.00018368,2]
[366919546,1750572638275,-732.62013032,0.00018371,2]
[366919547,1750572638286,-151.0,0.00018371,2]
[366919548,1750572638297,-500.0,0.00018371,2]
[366919549,1750572638307,-500.0,0.00018371,2]
[366919550,1750572638318,-500.0,0.00018371,2]
[366919551,1750572638328,-500.0,0.00018371,2]
[366919552,1750572638338,-300.0,0.00018371,2]
[366919553,1750572638347,-500.0,0.00018371,2]
[366919554,1750572638357,-151.0,0.00018371,2]
[366919555,1750572638368,-500.0,0.00018371,2]
[366919556,1750572638378,-500.0,0.00018371,2]
[366919557,1750572638388,-500.0,0.00018371,2]
[366919558,1750572638397,-151.0,0.00018371,2]
[366919560,1750572638407,-500.0,0.00018371,2]
[366919562,1750572638416,-151.0,0.00018371,2]
[366919564,1750572638425,-500.0,0.00018371,2]
[366919566,1750572638434,-207.4,0.00018371,2]
[366919568,1750572638444,-166.61,0.00018386,2]
[366919569,1750572638453,-233.0,0.00018399,2]
[366919571,1750572638462,-200.0,0.00018434,2]
[366919573,1750572638472,-9305.64,0.00018441,2]
[366919575,1750572638482,-168.0,0.00018446,2]
[366919577,1750572638492,-168.0,0.00018578,2]
[366919579,1750572638502,-2330.36,0.0001863,2]
[366919581,1750572638515,-2436.77,0.0001864,2]
[366919583,1750572638525,-553.0,0.00018739,2]
[366919585,1750572638534,-203.0,0.00018995,4]
[366919587,1750572638543,-848.676578,0.00019061,2]
[366919589,1750572638554,-1000.0,0.00019068,2]
[366919591,1750572638563,-189.14887529,0.00019078,2]
[366919593,1750572638573,-177.82045168,0.00019078,2]
[366919595,1750572638584,-174.21778262,0.00019078,2]
[366919597,1750572638594,-244.82628644,0.00019078,2]
[366919599,1750572638603,-685.5214,0.00019078,2]
[366919601,1750572638616,-204.4475,0.00019078,2]
[366919603,1750572638626,-33493.1817,0.00019078,2]
[366919605,1750572638635,-156.08,0.000191,2]
[366919607,1750572638644,-420.0,0.00019123,2]
[366919609,1750572638653,-365.0,0.00019124,2]
[366919611,1750572638662,-341.0,0.00019124,2]
[366919613,1750572638672,-1000.0,0.00019148,2]
[366919615,1750572638681,-156.07,0.0001916,2]
[366919617,1750572638691,-653.48,0.00019168,2]
[366919619,1750572638701,-653.48,0.00019168,2]
[366919621,1750572638711,-653.48,0.00019168,2]
[366919623,1750572638720,-653.48,0.00019168,2]
[366919625,1750572638730,-250.0,0.0001917,2]
[366919627,1750572638739,-500.0,0.00019173,2]
[366919629,1750572638748,-164.5,0.00019177,2]
[366919631,1750572638758,-500.0,0.00019177,2]
[366919633,1750572638767,-500.0,0.00019177,2]
[366919635,1750572638778,-500.0,0.00019177,2]
[366919637,1750572638787,-529.22086438,0.00019177,2]
[366919639,1750572638798,-266.53410301,0.00019177,2]
[366919641,1750572638808,-270.50237871,0.00019177,2]
[366919643,1750572638818,-500.0,0.00019177,2]
[366919645,1750572638827,-206.91806862,0.00019177,2]
[366919647,1750572638836,-269.32823085,0.00019177,2]
[366919649,1750572638846,-500.0,0.00019177,2]
[366919650,1750572638855,-159.19475277,0.00019177,2]
[366919652,1750572638864,-500.0,0.00019177,2]
[366919654,1750572638873,-258.30940466,0.00019177,2]
[366919656,1750572638883,-593.0,0.00019178,2]
[366919657,1750572638893,-490.0,0.00019178,2]
[366919658,1750572638903,-490.0,0.00019178,2]
[366919659,1750572638912,-500.0,0.00019178,2]